Cogmind - Beta 13 @@@ ROGUE MODE // 2024.04.17 @ 04:05:56 Player: Person Guy Result: Destroyed by P-80 Master with Gamma Rifle Performance ------------- Evolutions (7) 3500 Regions Visited (16) 3200 Robots Destroyed (126) 630 Value Destroyed (5304) 5304 Prototype IDs (45) 900 Alien Tech Used (1) 200 Bonus (701) 701 TOTAL SCORE: 14435 Bonus ------- Follower Combat Kills 222 Aligned with FarCom 300 Met Zhirov 300 Friendly Fire -121 Cogmind --------- Core Integrity 0/1300 Matter 314/600 Energy 48/100 System Corruption 3% Temperature Cool (0) Movement Flying (159) Ox2 Location -3/Research Parts ------- > --- POWER (2) -------- (None) > --- PROPULSION (4) --- Electron Diverter Improved Diametric Drive > --- UTILITY (11) ----- Advanced Heat Sink Advanced Heat Sink Advanced Heat Sink Improved Matter Compressor Advanced Target Analyzer Experimental Focal Shield Hacking Suite System Shield Experimental System Shield Drone Bay (2/2) > --- WEAPON (4) ------- Quantum Rifle Quantum Rifle Fusion Bomb Launcher > --- INVENTORY (5) ---- Improved Field Recycling Unit (0) Peak State ------------ > --- POWER ------------ Light Antimatter Reactor Heavy Antimatter Reactor > --- PROPULSION ------- Antigrav System Antigrav System Antigrav System Improved Antigrav System > --- UTILITY ---------- Improved Heat Sink Advanced Heat Sink Medium Storage Unit 0b10 Decoder Chip [Looter] Advanced Target Analyzer Makeshift Light Armor Plating Hacking Suite Hacking Suite Advanced Hacking Suite > --- WEAPON ----------- Phase Gun Quantum Rifle KE Penetrator Enhanced Gauss Cannon > --- INVENTORY -------- Advanced Medium Treads Improved Cooling System Improved Matter Compressor Makeshift Light Armor Plating Improved Field Recycling Unit Tesla Rifle Railgun Bore Cannon [Rating: 108] Favorites ----------- Power Ion Engine Engine Ion Engine Power Core Fission Core Reactor Antimatter Reactor Propulsion Improved Titanium Leg Treads Light Treads Leg Improved Titanium Leg Hover Unit Antigrav System Flight Unit Field Propulsion Drive Utility Hacking Suite Device Advanced Heat Sink Storage Large Storage Unit Processor Advanced Target Analyzer Hackware Hacking Suite Protection Makeshift Light Armor Plating Weapon Enhanced Gauss Cannon Energy Gun Advanced Beam Rifle Energy Cannon Heavy Plasma Cannon Ballistic Gun KE Penetrator Ballistic Cannon Enhanced Gauss Cannon Launcher Grenade Launcher Special Weapon Field Lobotomy Kit Slashing Weapon Katana Build | -11 -10 -10 -10 -9 -8 -7 -7 -7 -6 -5 -4 -4 -4 -4 -3 -3 ------- Run | Yrd Mat Min Exi Min Mat Fac Was Fac Fac Fac Fac Upp Upp Zhi Pro Res Slots Evolved 14 | . . . . . 4 2 . . 2 2 2 . . . . 2 Power 1 | . . . . . . . . . . 1 . . . . . . Propulsion 2 | . . . . . 1 . . . 1 . . . . . . . Utility 9 | . . . . . 2 2 . . 1 . 2 . . . . 2 Weapon 2 | . . . . . 1 . . . . 1 . . . . . . Parts Attached 200 | 6 7 1 2 1 25 13 5 24 17 20 24 5 5 2 11 32 Power 22 | 1 1 . . . 3 3 1 2 4 1 2 . 1 . 2 1 Engine 8 | 1 1 . . . 2 1 . 1 1 1 . . . . . . Core 11 | . . . . . 1 2 1 1 3 . 1 . 1 . . 1 Reactor 3 | . . . . . . . . . . . 1 . . . 2 . Propulsion 44 | 2 2 . . . 4 3 2 11 2 5 6 . . . 1 6 Treads 14 | 2 . . . . 3 3 . 3 . 1 1 . . . 1 . Leg 20 | . 2 . . . 1 . 2 8 2 4 . . . . . 1 Wheel . | . . . . . . . . . . . . . . . . . Hover 6 | . . . . . . . . . . . 5 . . . . 1 Flight 4 | . . . . . . . . . . . . . . . . 4 Utility 68 | 1 1 . . . 5 3 2 5 7 7 12 3 4 2 2 14 Device 38 | . . . . . 3 . 1 3 5 5 4 1 3 1 1 11 Storage 7 | 1 1 . . . . . . 1 . . 3 . . . . 1 Processor 5 | . . . . . . . . . . . 3 1 1 . . . Hackware 11 | . . . . . . 2 1 . 1 2 2 . . 1 . 2 Protection 7 | . . . . . 2 1 . 1 1 . . 1 . . 1 . Artifact . | . . . . . . . . . . . . . . . . . Weapon 66 | 2 3 1 2 1 13 4 . 6 4 7 4 2 . . 6 11 Energy Gun 27 | . . . . . 5 4 . 2 2 2 1 1 . . 2 8 Energy Cannon 3 | . . . . . . . . . . 1 1 . . . . 1 Ballistic Gun 19 | 2 1 . . 1 4 . . 4 2 2 1 . . . 1 1 Ballistic Cannon 10 | . 1 . 1 . 2 . . . . 1 1 1 . . 3 . Launcher 5 | . 1 1 . . 1 . . . . 1 . . . . . 1 Special Weapon 1 | . . . 1 . . . . . . . . . . . . . Impact Weapon . | . . . . . . . . . . . . . . . . . Slashing Weapon 1 | . . . . . 1 . . . . . . . . . . . Piercing Weapon . | . . . . . . . . . . . . . . . . . Special Melee Weapon . | . . . . . . . . . . . . . . . . . Unidentified Prototypes 22 | . . . 1 . 4 3 . 3 2 1 1 . . 1 1 5 Parts Lost 70 | . 4 . . . 7 . 1 3 1 20 . . . . 11 23 Power 8 | . 1 . . . 1 . . . . 2 . . . . 2 2 Propulsion 19 | . 1 . . . 3 . 1 . . 6 . . . . 4 4 Utility 21 | . . . . . 1 . . 2 1 8 . . . . 3 6 Weapon 22 | . 2 . . . 2 . . 1 . 4 . . . . 2 11 Highest Loss Streak 18 | . 1 . . . 4 . 1 2 1 18 . . . . 8 18 To Critical Strikes 1 | . . . . . . . . . . 1 . . . . . . Average Slot Usage (%) 84 | . 83 85 85 85 77 96 58 88 95 95 52 100 100 99 79 46 Engine 4 | . 13 14 14 14 7 4 . 3 . 4 . . . . . . Core 2 | . . . . . . 2 . 1 6 4 2 5 5 5 . . Reactor 1 | . . . . . . . . . . . 2 5 5 5 9 . Treads 4 | . 13 . . . 17 23 . 1 . . 4 . . . 4 . Leg 12 | . 13 28 28 28 5 . 13 19 26 22 . . . . . 1 Hover 3 | . . . . . . . . . . . 3 21 21 21 2 . Device 8 | . . . . . 6 7 15 9 20 13 4 12 10 9 9 14 Storage 7 | . 14 14 14 14 9 7 5 6 6 4 . 5 5 5 5 . Processor 2 | . . . . . . . . . . . 5 8 9 10 5 4 Hackware 10 | . . . . . . 13 23 19 15 18 11 15 15 15 10 10 Protection 3 | . . . . . 4 13 . 3 . . . 4 5 5 9 . Energy Gun 5 | . . . . . 10 14 . 12 6 4 4 4 5 5 5 3 Ballistic Gun 7 | . 20 1 . 12 10 7 . 8 13 10 4 5 5 5 4 . Ballistic Cannon 4 | . 6 14 14 14 1 . . . . 4 4 5 5 5 9 . Launcher 1 | . . 12 14 1 . . . . . . . . . . . . Naked Turns . | . . . . . . . . . . . . . . . . . Heaviest Build 79 | 10 29 31 31 31 45 54 23 47 59 69 64 71 71 67 79 79 Greatest Support 80 | 40 40 20 20 20 66 66 25 60 80 80 45 45 45 45 45 30 Greatest Overweight (x) 4 | . 1 1 1 1 1 . . . . 1 2 1 1 1 2 4 Average Overweight (x) . | . . 1 1 1 . . . . . . . 1 1 1 1 . Largest Inventory Capacity 15 | 8 15 15 15 15 15 15 15 15 15 15 10 10 10 10 10 10 Average Capacity 12 | 6 8 15 15 15 15 15 12 13 15 14 5 10 10 10 10 5 Most Carried 15 | 5 7 6 7 11 12 15 15 14 15 15 8 10 10 10 10 7 Average Carried 8 | 2 4 6 6 7 9 12 12 9 12 13 3 9 9 9 5 4 Final Capacity 15 | 8 15 15 15 15 15 15 5 15 15 5 10 10 10 10 10 5 Final Carried 14 | 3 6 6 7 11 10 14 5 12 14 5 7 10 10 10 7 1 Class Distribution -------------------- 25% | Hacker-Skirmisher 23% | Mutant 10% | Derelict-Tank 9% | Hacker-Gunner 6% | Scavenger-Skirmisher 5% | Scavenger-Gunner 5% | Skirmisher 5% | Hacker-Mutant 3% | Hacker-Tank Dominant Class ---------------- Mutant | -10/Materials Mutant | -10/Mines Mutant | -10/Exiles Mutant | -9/Mines Skirmisher | -8/Materials Hacker-Tank | -7/Factory Hacker-Mutant | -7/Waste Scavenger-Skirmisher | -7/Factory Hacker-Skirmisher | -6/Factory Hacker-Skirmisher | -5/Factory Hacker-Skirmisher | -4/Factory Scavenger-Gunner | -4/Upper Caves Hacker-Gunner | -4/Upper Caves Hacker-Gunner | -4/Zhirov Derelict-Tank | -3/Proximity Caves Hacker-Mutant | -3/Research Resources | -11 -10 -10 -10 -9 -8 -7 -7 -7 -6 -5 -4 -4 -4 -4 -3 -3 ----------- Run | Yrd Mat Min Exi Min Mat Fac Was Fac Fac Fac Fac Upp Upp Zhi Pro Res Matter Collected 3898 | 239 163 77 . 74 472 272 . 487 409 365 323 149 170 . 554 144 Remotely . | . . . . . . . . . . . . . . . . . Salvage Created 6093 | . 280 . . 15 1011 422 . 609 691 446 725 390 261 . 669 574 Parts 251 | . 16 . . 3 61 21 . 20 34 18 28 7 8 . 20 15 Haulers Intercepted 6 | . 1 . . . 2 1 . . 1 1 . . . . . . Recyclers Shooed 6 | . . . . . 1 . . . . . 4 . . . . 1 Parts Field Recycled 15 | . . . . . . . . . 9 . 6 . . . . . Retrieved Matter 395 | . . . . . . . . . 158 . 237 . . . . . Parts Self-Destructed 33 | . . . . . . . . . . . . 5 12 . 16 . Prevented 2 | . . . . . . . . . . . . . . . 2 . Kills | -11 -10 -10 -10 -9 -8 -7 -7 -7 -6 -5 -4 -4 -4 -4 -3 -3 ------- Run | Yrd Mat Min Exi Min Mat Fac Was Fac Fac Fac Fac Upp Upp Zhi Pro Res Combat Hostiles Destroyed 102 | . 8 . . 3 21 8 . 12 13 9 4 2 4 . 11 7 Melee 1 | . . . . . 1 . . . . . . . . . . . Guns 67 | . 3 . . . 10 8 . 12 13 6 2 1 3 . 5 4 Cannons 20 | . 2 . . 3 . . . . . 3 2 1 . . 6 3 AOE 13 | . 3 . . . 10 . . . . . . . . . . . Classes Destroyed 14 | . 3 . . . 8 2 . . . . . 1 . . . . Worker 3 | . . . . . 2 . . . . 1 . . . . . . Builder 2 | . . . . . 2 . . . . . . . . . . . Hauler 6 | . 1 . . . 2 1 . . 1 1 . . . . . . Recycler 8 | . . . . . 2 . . 1 . . 4 . . . . 1 Mechanic 2 | . . . . . 1 1 . . . . . . . . . . Operator 3 | . . . . . 1 2 . . . . . . . . . . Swarmer 21 | . 3 . . 3 4 . . . 4 4 . 1 . . 2 . Grunt 43 | . 5 . . . 13 3 . 5 3 . . . 3 . 5 6 Brawler 5 | . . . . . 1 . . 1 . . . . 1 . 2 . Duelist 2 | . . . . . 1 . . . . . . . . . 1 . Sentry 11 | . . . . . 2 2 . 2 3 1 . . . . 1 . Hunter 4 | . . . . . . 1 . 1 . 2 . . . . . . Programmer 15 | . . . . . . 2 . 3 3 2 4 . . . . 1 Mutant 1 | . . . . . . . . . . . . 1 . . . . Best Kill Streak 18 | . 3 . . 3 18 3 . 3 4 6 2 1 4 . 5 4 Combat Bots Only 12 | . 3 . . 3 12 3 . 3 4 6 2 1 4 . 5 4 Max Kills in Single Turn 5 | . 3 . . 1 5 1 . 1 2 1 2 1 1 . 2 1 Gunslinging 1 | . . . . . . . . . 1 . . . . . . . Exploded 3 | . 3 . . . 3 . . . . . . . . . . . Melee 1 | . . . . . 1 . . . . . . . . . . . Uniques/NPCs Destroyed . | . . . . . . . . . . . . . . . . . Combat | -11 -10 -10 -10 -9 -8 -7 -7 -7 -6 -5 -4 -4 -4 -4 -3 -3 -------- Run | Yrd Mat Min Exi Min Mat Fac Was Fac Fac Fac Fac Upp Upp Zhi Pro Res Hostile Shots Fired 1139 | . 97 1 . 21 100 88 1 111 116 224 12 16 3 . 102 247 Missed 364 | . 24 . . 7 23 31 . 42 49 70 3 5 1 . 33 76 Damage Taken 13403 | . 845 18 . 102 1315 631 57 805 865 3195 181 181 97 . 1583 3528 Core 3119 | . 173 . . . 312 65 57 184 110 664 . 54 21 . 156 1323 Absorbed by Shields . | . . . . . . . . . . . . . . . . . Ignored by Resistances 21 | . . . . . . 21 . . . . . . . . . . Core Remaining (%) 61 | 100 . . . 30 43 . . 56 87 33 . . . . 79 . Volleys Fired 353 | . 55 . . 12 41 33 . 39 34 27 17 15 11 . 31 38 Largest 4 | . 2 . . 2 3 3 . 3 3 4 4 4 4 . 4 4 Hottest 272 | . 65 . . 55 146 163 . 117 119 196 268 268 268 . 272 253 Shots Fired 960 | . 108 . . 24 107 99 . 109 102 108 47 48 39 . 99 70 Gun 774 | . 94 . . 12 97 99 . 109 102 79 29 27 20 . 58 48 Cannon 171 | . 13 . . 12 2 . . . . 27 18 21 19 . 41 18 Launcher 15 | . 1 . . . 8 . . . . 2 . . . . . 4 Special . | . . . . . . . . . . . . . . . . . Kinetic 560 | . 107 . . 24 51 33 . 45 68 79 24 19 23 . 69 18 Thermal 366 | . . . . . 48 66 . 64 34 27 23 29 16 . 22 37 Explosive 15 | . 1 . . . 8 . . . . 2 . . . . . 4 Electromagnetic 19 | . . . . . . . . . . . . . . . 8 11 Robot Hit Streak 23 | . 7 . . 4 15 23 . 12 17 7 8 5 10 . 6 10 Robot Miss Streak 8 | . 8 . . 2 5 4 . 7 4 3 2 4 4 . 5 4 Penetration Max 1 | . . . . . . . . . 1 1 . . . . 1 1 Secondary Targets 5 | . 1 . . . . . . 1 3 . . . . . . . Max Gunslinging Chain 1 | . 1 . . . . . . 1 1 . . . . . . . Shots Hit Robots 590 | . 59 . . 15 71 72 . 80 69 56 27 20 19 . 53 49 Core Hits 373 | . 20 1 . 4 82 60 . 50 38 36 13 9 7 . 27 26 Critical Kills 6 | . . . . . . . . . . . 1 . 3 . 1 1 Critical Parts Destroyed 4 | . . . . . . . . . 1 1 . . . . 2 . Critical Strikes 31 | . 1 . . . 1 2 . 6 1 2 4 2 3 . 7 2 Burn 11 | . . . . . 1 2 . 6 . . 2 . . . . . Meltdown 1 | . . . . . . . . . . . . . 1 . . . Destroy 11 | . . . . . . . . . 1 1 1 . 2 . 5 1 Blast 8 | . 1 . . . . . . . . 1 1 2 . . 2 1 Melee Attacks 7 | . . . . . 7 . . . . . . . . . . . Impact . | . . . . . . . . . . . . . . . . . Slashing 7 | . . . . . 7 . . . . . . . . . . . Piercing . | . . . . . . . . . . . . . . . . . Sneak Attacks . | . . . . . . . . . . . . . . . . . Combat Hostiles . | . . . . . . . . . . . . . . . . . Follow-up Attacks . | . . . . . . . . . . . . . . . . . Damage Inflicted 15140 | . 700 3 . 201 2157 1296 . 1649 1580 2221 897 713 603 . 1572 1548 Guns 9911 | . 455 . . 57 973 1296 . 1649 1580 852 545 353 281 . 895 975 Cannons 2783 | . 87 . . 144 . . . . . 457 352 360 322 . 677 384 Explosions 2354 | . 156 . . . 1101 . . . . 908 . . . . . 189 Melee 83 | . . . . . 83 . . . . . . . . . . . Ramming 9 | . 2 3 . . . . . . . 4 . . . . . . Kinetic 6862 | . 542 . . 201 433 343 . 662 1140 963 423 361 294 . 1172 328 Thermal 5455 | . . . . . 540 953 . 987 440 346 474 352 309 . 309 745 Explosive 2354 | . 156 . . . 1101 . . . . 908 . . . . . 189 Electromagnetic 377 | . . . . . . . . . . . . . . . 91 286 Impact . | . . . . . . . . . . . . . . . . . Slashing 83 | . . . . . 83 . . . . . . . . . . . Piercing . | . . . . . . . . . . . . . . . . . Highest Corruption 15 | . . . . . . . 6 11 3 8 4 4 4 . 15 3 Average Corruption 7 | . . . . . . . 6 8 3 3 3 4 3 . 14 1 Corruption Purged 4 | . . . . . . . . . . . . . 4 . . . Corruption Blocked . | . . . . . . . . . . . . . . . . . Effects 167 | . . . . . . . 4 57 12 4 9 13 10 . 58 . Message Errors 43 | . . . . . . . 2 16 2 . 3 5 3 . 12 . Matter Fused 33 | . . . . . . . 2 10 3 2 . 3 . . 13 . Heat Flow Errors 20 | . . . . . . . . 8 2 1 1 . 2 . 6 . Energy Discharges 25 | . . . . . . . . 9 . 1 2 2 1 . 10 . Parts Rejected 2 | . . . . . . . . 1 . . . . . . 1 . Parts Fused 3 | . . . . . . . . . 1 . . . 1 . 1 . Data Loss (minor) 16 | . . . . . . . . 2 3 . 1 1 1 . 8 . Data Loss (major) 9 | . . . . . . . . 4 1 . 1 1 . . 2 . Misfires 7 | . . . . . . . . 1 . . . 1 1 . 4 . Alerts 3 | . . . . . . . . 1 . . . . 1 . 1 . Misdirections 2 | . . . . . . . . 2 . . . . . . . . Weapon Failures 4 | . . . . . . . . 3 . . 1 . . . . . Overload Shots . | . . . . . . . . . . . . . . . . . Overflow Damage 73 | . . . . 4 . . . . . 9 36 14 . . . 10 Projectiles 63 | . . . . 4 . . . . . 9 36 14 . . . . Explosions 10 | . . . . . . . . . . . . . . . . 10 Melee . | . . . . . . . . . . . . . . . . . Knockbacks 23 | . 1 . . 4 . . . . . 5 3 . 2 . 2 6 Impact . | . . . . . . . . . . . . . . . . . Kinetic 20 | . 1 . . 3 . . . . . 5 3 . 2 . 2 4 Secondary 3 | . . . . 1 . . . . . . . . . . . 2 Self-Inflicted Damage 121 | . 24 . . . 23 . . . . 74 . . . . . . Shots 4 | . 1 . . . 1 . . . . 2 . . . . . . Rammed 1 | . 1 . . . . . . . . . . . . . . . Targets Rammed 3 | . 1 1 . . . . . . . 1 . . . . . . Kicked 1 | . . 1 . . . . . . . . . . . . . . Crushed 1 | . . . . . . . . . . 1 . . . . . . Highest Temperature 411 | . 76 . . 28 241 310 . 252 103 354 411 230 312 . 323 187 Average Temperature 83 | . 21 . . 13 64 93 . 66 17 80 149 65 131 . 127 63 Received Heat Transfer 2710 | . 402 9 . . 612 117 . 192 186 42 . 9 18 . 352 771 Effects 5 | . . . . . . . . . . 1 1 . 1 . 2 . Shutdowns 1 | . . . . . . . . . . . 1 . . . . . Energy Bleed 2 | . . . . . . . . . . 1 . . 1 . . . Interference 2 | . . . . . . . . . . . . . . . 2 . Siege Activations . | . . . . . . . . . . . . . . . . . Robots Corrupted . | . . . . . . . . . . . . . . . . . Combat Hostiles . | . . . . . . . . . . . . . . . . . Parts Fried . | . . . . . . . . . . . . . . . . . Impact Corruptions . | . . . . . . . . . . . . . . . . . Robots Melted 1 | . . . . . . . . . . . . . 1 . . . Combat Hostiles 1 | . . . . . . . . . . . . . 1 . . . Parts Melted 11 | . . . . . 3 1 . 2 . . 2 . 2 . . 1 Heat Transferred 9483 | . . . . . 1107 1542 . 2220 777 482 792 535 435 . 433 1160 Parts Sabotaged . | . . . . . . . . . . . . . . . . . Parts Stolen . | . . . . . . . . . . . . . . . . . Parts Stripped . | . . . . . . . . . . . . . . . . . Power Chain Reactions . | . . . . . . . . . . . . . . . . . Alert | -11 -10 -10 -10 -9 -8 -7 -7 -7 -6 -5 -4 -4 -4 -4 -3 -3 ------- Run | Yrd Mat Min Exi Min Mat Fac Was Fac Fac Fac Fac Upp Upp Zhi Pro Res Peak Influence 428 | . 174 21 . 70 428 208 14 235 247 279 122 . . . . 196 Initial 110 | . . 21 . . 27 88 14 2 60 110 68 . . . . . Average 78 | . 36 7 . 49 170 79 11 73 114 99 65 . . . . 46 Maximum Alert Level 2 | . . . . . 2 1 . 1 1 1 . . . . . . Low Security (%) 92 | 100 100 100 . 100 68 99 100 89 89 94 100 . . . . 100 Level 1 6 | . . . . . 26 . . 10 10 5 . . . . . . Level 2 . | . . . . . 5 . . . . . . . . . . . Level 3 . | . . . . . . . . . . . . . . . . . Level 4 . | . . . . . . . . . . . . . . . . . Level 5 . | . . . . . . . . . . . . . . . . . High Security . | . . . . . . . . . . . . . . . . . Max Security . | . . . . . . . . . . . . . . . . . Squads Dispatched 26 | . . . . . 2 4 . 4 5 3 4 . . . . 4 Investigation 2 | . . . . . 1 . . . . . 1 . . . . . Extermination 11 | . . . . . . 2 . 2 3 1 2 . . . . 1 Reinforcement 12 | . . . . . 1 2 . 1 2 2 1 . . . . 3 Assault 1 | . . . . . . . . 1 . . . . . . . . Garrison . | . . . . . . . . . . . . . . . . . Intercept . | . . . . . . . . . . . . . . . . . Searches Triggered . | . . . . . . . . . . . . . . . . . Construction Impeded 2 | . . . . . 1 . . . . 1 . . . . . . Haulers Reinforced . | . . . . . . . . . . . . . . . . . Active Scanning Responses . | . . . . . . . . . . . . . . . . . Cargo Convoy Interrupts 1 | . . . . . . . . . . 1 . . . . . . Stealth | -11 -10 -10 -10 -9 -8 -7 -7 -7 -6 -5 -4 -4 -4 -4 -3 -3 --------- Run | Yrd Mat Min Exi Min Mat Fac Was Fac Fac Fac Fac Upp Upp Zhi Pro Res Distress Signals 11 | . 1 . . . 6 . . 2 . 1 . . . . . 1 Communications Jammed . | . . . . . . . . . . . . . . . . . Distress Signals . | . . . . . . . . . . . . . . . . . Times Spotted 199 | . 17 2 . 3 35 11 6 21 25 28 4 4 8 . 11 24 Peak Tracking Total 10 | . 4 2 . 3 8 3 6 4 4 10 2 3 5 . 5 8 Tactical Retreats 12 | . . . . . 2 . 1 . 2 1 . . . . . 6 Traps | -11 -10 -10 -10 -9 -8 -7 -7 -7 -6 -5 -4 -4 -4 -4 -3 -3 ------- Run | Yrd Mat Min Exi Min Mat Fac Was Fac Fac Fac Fac Upp Upp Zhi Pro Res Traps Triggered 3 | . . . . . . 1 . . 1 . 1 . . . . . Indirectly . | . . . . . . . . . . . . . . . . . Trap Hack Attempts . | . . . . . . . . . . . . . . . . . Triggered . | . . . . . . . . . . . . . . . . . Disarmed . | . . . . . . . . . . . . . . . . . Reprogrammed 6 | . . . . . . . . . . 6 . . . . . . Reused 2 | . . . . . . . . . . 2 . . . . . . Traps Extracted . | . . . . . . . . . . . . . . . . . Installed . | . . . . . . . . . . . . . . . . . Triggered 2 | . . . . . . . . . . 2 . . . . . . Machines | -11 -10 -10 -10 -9 -8 -7 -7 -7 -6 -5 -4 -4 -4 -4 -3 -3 ---------- Run | Yrd Mat Min Exi Min Mat Fac Was Fac Fac Fac Fac Upp Upp Zhi Pro Res Machines Disabled 8 | . 1 . . . 1 . . . 1 3 . 1 . . . 1 Max in Single Turn 1 | . 1 . . . 1 . . . 1 1 . 1 . . . 1 Garrison Access 1 | . . . . . . . . 1 . . . . . . . . Machines Repaired . | . . . . . . . . . . . . . . . . . Machines Dismantled . | . . . . . . . . . . . . . . . . . Machines Sabotaged . | . . . . . . . . . . . . . . . . . Overloaded Fab Kills . | . . . . . . . . . . . . . . . . . Hacking | -11 -10 -10 -10 -9 -8 -7 -7 -7 -6 -5 -4 -4 -4 -4 -3 -3 --------- Run | Yrd Mat Min Exi Min Mat Fac Was Fac Fac Fac Fac Upp Upp Zhi Pro Res Machines Accessed 32 | . 5 . . 1 3 . . 5 1 4 1 2 1 9 . . Terminals 19 | . 5 . . . 3 . . 5 1 4 1 . . . . . Fabricators . | . . . . . . . . . . . . . . . . . Repair Stations . | . . . . . . . . . . . . . . . . . Recycling Units . | . . . . . . . . . . . . . . . . . Scanalyzers . | . . . . . . . . . . . . . . . . . Garrison Access . | . . . . . . . . . . . . . . . . . Total Hacks 90 | . 13 . . 1 16 . . 12 1 17 2 2 1 25 . . Successful 65 | . 8 . . 1 9 . . 8 . 10 1 2 1 25 . . Failed 25 | . 5 . . . 7 . . 4 1 7 1 . . . . . Catastrophic 8 | . 1 . . . 1 . . 1 1 3 1 . . . . . Database Lockouts . | . . . . . . . . . . . . . . . . . Manual 24 | . 3 . 1 . 8 . . 2 . 8 2 . . . . . Terminals 61 | . 13 . . . 16 . . 12 1 17 2 . . . . . Fabricators . | . . . . . . . . . . . . . . . . . Repair Stations . | . . . . . . . . . . . . . . . . . Recycling Units . | . . . . . . . . . . . . . . . . . Scanalyzers . | . . . . . . . . . . . . . . . . . Garrison Access . | . . . . . . . . . . . . . . . . . Terminal Hacks 60 | . 7 . . 1 8 . . 6 . 10 . 2 1 25 . . Record 16 | . . . . . . . . . . 1 . 1 1 13 . . Part Schematic 4 | . . . . . . . . . . . . . . 4 . . Robot Analysis 4 | . . . . . . . . . . . . . . 4 . . Prototype ID Bank 10 | . 1 . . . 2 . . . . 3 . . . 4 . . Open Door 2 | . . . . 1 . . . . . . . 1 . . . . Level Access Points 2 | . . . . . . . . 1 . 1 . . . . . . Emergency Access Points 5 | . 1 . . . 2 . . 1 . 1 . . . . . . Terminal Index 1 | . . . . . . . . 1 . . . . . . . . Alert Level 8 | . 2 . . . 2 . . 2 . 2 . . . . . . Unreport Threat 1 | . . . . . 1 . . . . . . . . . . . Locate Traps 4 | . 2 . . . 1 . . 1 . . . . . . . . Reprogram Traps 1 | . . . . . . . . . . 1 . . . . . . Registered Components 2 | . 1 . . . . . . . . 1 . . . . . . Fabricator Hacks . | . . . . . . . . . . . . . . . . . Repair Station Hacks . | . . . . . . . . . . . . . . . . . Recycling Unit Hacks . | . . . . . . . . . . . . . . . . . Scanalyzer . | . . . . . . . . . . . . . . . . . Garrison Access Hacks . | . . . . . . . . . . . . . . . . . Unauthorized Hacks 5 | . 1 . . . 1 . . 2 . . 1 . . . . . Terminals 5 | . 1 . . . 1 . . 2 . . 1 . . . . . Assimilate 2 | . . . . . . . . 1 . . 1 . . . . . Operators 3 | . 1 . . . 1 . . 1 . . . . . . . . Fabricators . | . . . . . . . . . . . . . . . . . Repair Stations . | . . . . . . . . . . . . . . . . . Recycling Units . | . . . . . . . . . . . . . . . . . Scanalyzers . | . . . . . . . . . . . . . . . . . Garrison Access . | . . . . . . . . . . . . . . . . . Data Cores Recovered 1 | . . . . . 1 . . . . . . . . . . . Used 1 | . . . . . 1 . . . . . . . . . . . Hacking Detections 19 | . 5 . . . 3 . . 5 1 4 1 . . . . . Full Trace Events 1 | . . . . . 1 . . . . . . . . . . . Feedback Events . | . . . . . . . . . . . . . . . . . Feedback Blocked . | . . . . . . . . . . . . . . . . . Robot Schematics Acquired . | . . . . . . . . . . . . . . . . . Robots Built . | . . . . . . . . . . . . . . . . . Authchips . | . . . . . . . . . . . . . . . . . Time . | . . . . . . . . . . . . . . . . . Total Robot Build Rating . | . . . . . . . . . . . . . . . . . Part Schematics Acquired 4 | . . . . . . . . . . . . . . 4 . . Parts Built . | . . . . . . . . . . . . . . . . . Authchips . | . . . . . . . . . . . . . . . . . Time . | . . . . . . . . . . . . . . . . . Total Part Build Rating . | . . . . . . . . . . . . . . . . . Parts Repaired . | . . . . . . . . . . . . . . . . . Time . | . . . . . . . . . . . . . . . . . Parts Recycled . | . . . . . . . . . . . . . . . . . Recycled Matter . | . . . . . . . . . . . . . . . . . Retrieved Matter . | . . . . . . . . . . . . . . . . . Retrieved Components . | . . . . . . . . . . . . . . . . . Parts Scanalyzed . | . . . . . . . . . . . . . . . . . Part Schematics Acquired . | . . . . . . . . . . . . . . . . . Parts Damaged . | . . . . . . . . . . . . . . . . . Bothacking | -11 -10 -10 -10 -9 -8 -7 -7 -7 -6 -5 -4 -4 -4 -4 -3 -3 ------------ Run | Yrd Mat Min Exi Min Mat Fac Was Fac Fac Fac Fac Upp Upp Zhi Pro Res Used RIF Installer . | . . . . . . . . . . . . . . . . . Robots Hacked . | . . . . . . . . . . . . . . . . . Non-combat . | . . . . . . . . . . . . . . . . . Combat . | . . . . . . . . . . . . . . . . . Robot Hacks Applied . | . . . . . . . . . . . . . . . . . Relay Couplers Released . | . . . . . . . . . . . . . . . . . Fabnet Peak Effective % . | . . . . . . . . . . . . . . . . . Robots Rewired 4 | . . . . . . . . . . . . 4 . . . . Allies Hacked 1 | . . . . . . . . . . . . . 1 . . . Hacks Repelled . | . . . . . . . . . . . . . . . . . Allies | -11 -10 -10 -10 -9 -8 -7 -7 -7 -6 -5 -4 -4 -4 -4 -3 -3 -------- Run | Yrd Mat Min Exi Min Mat Fac Was Fac Fac Fac Fac Upp Upp Zhi Pro Res Total Allies 5 | . . . . . . . . 1 . . . 4 . . . . Largest Group 4 | . . . . . . . . 1 . . . 4 4 . . . Highest-Rated Group 176 | . . . . . . . . 10 . . . 176 176 . . . Highest-Rated Ally 46 | . . . . . . . . 10 . . . 46 46 . . . Total Orders 3 | . . . . . . . . 1 . . . . . . . 2 ROAM 1 | . . . . . . . . . . . . . . . . 1 EXPLORE 2 | . . . . . . . . 1 . . . . . . . 1 Ally Attacks 42 | . . . . . . . . 13 . . . 10 19 . . . Total Damage 906 | . . . . . . . . . . . . 324 582 . . . Kills 5 | . . . . . . . . . . . . 2 3 . . . Allies Corrupted . | . . . . . . . . . . . . . . . . . Allies Melted . | . . . . . . . . . . . . . . . . . Intel | -11 -10 -10 -10 -9 -8 -7 -7 -7 -6 -5 -4 -4 -4 -4 -3 -3 ------- Run | Yrd Mat Min Exi Min Mat Fac Was Fac Fac Fac Fac Upp Upp Zhi Pro Res Robot Analysis Total 4 | . . . . . . . . . . . . . . 4 . . Derelict Logs Recovered 2 | . . . . 1 . . . . . . . . 1 . . . Drone Launches 20 | . . . . . . . . 16 . . . . . . . 4 Drone Recoveries 2 | . . . . . . . . . . . . . . . . 2 Exploration | -11 -10 -10 -10 -9 -8 -7 -7 -7 -6 -5 -4 -4 -4 -4 -3 -3 ------------- Run | Yrd Mat Min Exi Min Mat Fac Was Fac Fac Fac Fac Upp Upp Zhi Pro Res Turns Passed 14110 | 77 1091 1062 436 328 1072 893 108 1618 1574 1103 652 759 705 277 1587 768 Spaces Moved 7678 | 42 627 211 228 125 505 456 74 777 920 680 321 627 547 188 528 822 Core 179 | 4 . . . . . . . . . 24 54 . . . . 97 Treads 1865 | 38 271 . . . 380 456 . 58 . 13 206 . . . 433 10 Legs 3443 | . 356 211 228 125 125 . 74 719 920 643 . . . . . 42 Wheels . | . . . . . . . . . . . . . . . . . Hover 1548 | . . . . . . . . . . . 61 627 547 188 95 30 Flight 643 | . . . . . . . . . . . . . . . . 643 Fastest Speed 30 | 50 120 190 190 190 120 160 120 120 127 50 50 108 108 108 108 30 Average Speed 137 | 149 144 190 190 190 164 160 120 128 128 125 162 108 108 108 277 50 Slowest Speed 305 | 160 190 190 190 190 190 160 120 160 130 200 225 108 108 108 305 305 Overloaded Moves . | . . . . . . . . . . . . . . . . . Propulsion Burnouts . | . . . . . . . . . . . . . . . . . Robots Hopped 14 | . . . . . . . . . . . . . . . . 14 Cave-ins Triggered . | . . . . . . . . . . . . . . . . . Exploration Rate (%) 41 | 4 90 32 63 33 30 10 75 27 22 21 6 80 71 62 66 20 Regions Visited 16 Branch Regions 7 Pre-discovered Areas 5 | . . . . 1 . . . . . . . . 1 3 . . Known Exits Taken 2 | . . . . . . . . 1 . 1 . . . . . . Unknown Exits Taken 12 | 1 1 1 1 1 1 . . . 1 . 1 1 1 1 1 . Scrap Searched 7 | . . . . 1 . . . . . . . 1 2 . 3 . Spaces Dug 3 | . . . . . . . . . . . . 3 . . . . Terrain Destroyed 241 | . 5 . . . 33 . . . 3 45 9 14 13 . 32 87 Melee . | . . . . . . . . . . . . . . . . . Projectile 83 | . . . . . . . . . 3 9 9 14 13 . 32 3 AOE 158 | . 5 . . . 33 . . . . 36 . . . . . 84 Terrain Rammed . | . . . . . . . . . . . . . . . . . Walls Destroyed . | . . . . . . . . . . . . . . . . . Machines Disabled . | . . . . . . . . . . . . . . . . . Actions | -11 -10 -10 -10 -9 -8 -7 -7 -7 -6 -5 -4 -4 -4 -4 -3 -3 --------- Run | Yrd Mat Min Exi Min Mat Fac Was Fac Fac Fac Fac Upp Upp Zhi Pro Res Total 10550 | 56 726 871 231 194 669 567 96 1319 1239 874 424 682 638 265 583 1116 Wait 1927 | . 23 659 . 54 54 27 10 418 236 118 25 3 59 53 3 185 Move 7635 | 41 626 210 227 124 504 456 73 776 919 679 320 626 546 187 527 794 Hop 14 | . . . . . . . . . . . . . . . . 14 Pick Up 237 | 9 10 . 1 3 25 21 . 40 19 15 27 13 8 7 7 32 Fast Attach . | . . . . . . . . . . . . . . . . . Attach 175 | 6 6 . 1 . 21 12 3 20 14 14 24 4 4 3 11 32 Detach 23 | . 1 . 1 . 2 . 6 . 1 . 4 1 . . 2 5 Swap 26 | . 1 1 1 1 4 1 2 4 3 6 . 1 1 . . . Drop 130 | . 3 . . . 11 17 2 22 13 14 7 10 8 6 2 15 Fire 353 | . 55 . . 12 41 33 . 39 34 27 17 15 11 . 31 38 Melee 7 | . . . . . 7 . . . . . . . . . . . Ram . | . . . . . . . . . . . . . . . . . Kick 1 | . . 1 . . . . . . . . . . . . . . Crush 2 | . 1 . . . . . . . . 1 . . . . . . Escape Stasis . | . . . . . . . . . . . . . . . . . Rewire 19 | . . . . . . . . . . . . 9 1 9 . . Trap . | . . . . . . . . . . . . . . . . . Miscellaneous 1 | . . . . . . . . . . . . . . . . 1 Route ------- -11/Scrapyard -10/Materials (discovered 6 exits: [*Mat x3] / [*Min x2] / [*Sub]) -10/Mines (discovered 2 exits: [*Mat] / *Exi) -10/Exiles -9/Mines (discovered 2 exits: *Mat x2) -8/Materials -7/Factory -7/Waste -7/Factory (discovered 5 exits: *Fac x4 / [*Low]) -6/Factory (discovered 3 exits: *Fac / [*Low x2]) -5/Factory (discovered 4 exits: *Fac x4) -4/Factory -4/Upper Caves -4/Upper Caves (discovered 2 exits: [*Res] / *Zhi) -4/Zhirov -3/Proximity Caves -3/Research History --------- Turn | Location | Event 20 | -11/Scrapyard | Discovered new exit (range 15) 78 | -11/Scrapyard | Entered Materials 160 | -10/Materials | Discovered new exit (range 15) 269 | -10/Materials | Discovered new exit (range 9) 307 | -10/Materials | Build established: Mutant 357 | -10/Materials | Discovered new exit (range 11) 488 | -10/Materials | Discovered new exit (range 8) 620 | -10/Materials | Core integrity fell below 50% 668 | -10/Materials | Discovered new exit (range 15) 959 | -10/Materials | Discovered new exit (range 8) 1169 | -10/Materials | Entered Mines 1199 | -10/Mines | Assembled infested the area 2185 | -10/Mines | Discovered new exit (range 7) 2221 | -10/Mines | Deemed a non-threat by the Exiles lab entrance 2223 | -10/Mines | Discovered new exit (range 5) 2231 | -10/Mines | Entered Exiles 2279 | -10/Exiles | Met 8R-AWN 2309 | -10/Exiles | Met EX-HEX 2361 | -10/Exiles | Met EX-BIN 2383 | -10/Exiles | Aligned with FarCom system 2385 | -10/Exiles | Given EX-Vault access code 2435 | -10/Exiles | Opened EX-Vault 2444 | -10/Exiles | Found Prototype Special Weapon 2445 | -10/Exiles | Identified Field Lobotomy Kit 2488 | -10/Exiles | Warned to stay clear of 0b10 Research branches 2547 | -10/Exiles | Met EX-DEC 2615 | -10/Exiles | Discovered new exit (range 10) 2667 | -10/Exiles | Left Exiles lab with Field Lobotomy Kit 2667 | -10/Exiles | Entered Mines 2848 | -9/Mines | Discovered new exit (range 8) 2883 | -9/Mines | Found the Drone Emporium 2891 | -9/Mines | Found Prototype Device 2982 | -9/Mines | Discovered new exit (range 5) 2995 | -9/Mines | Entered Materials 2995 | -8/Materials | Evolved 4 slots: Propulsion x1, Utility x2, Weapon x1 3000 | -8/Materials | Identified Bomb Drone Bay 3240 | -8/Materials | Destroyed 12 combat bots 3244 | -8/Materials | Lost 3 parts (1p1n1u) 3345 | -8/Materials | Lost 4 parts (2n2w) 3500 | -8/Materials | Core integrity fell below 50% 3805 | -8/Materials | Build established: Skirmisher 3867 | -8/Materials | Discovered new exit (range 16) 4067 | -8/Materials | Entered Factory 4067 | -7/Factory | Evolved 2 slots: Utility x2 4325 | -7/Factory | Discovered new exit (range 5) 4488 | -7/Factory | Build established: Hacker-Tank 4960 | -7/Factory | Sucked down chute 4960 | -7/Factory | Entered Waste 4975 | -7/Waste | EMP discharged 4984 | -7/Waste | Spotted C-40 Crusher 4986 | -7/Waste | Spotted C-40 Crusher 4998 | -7/Waste | Spotted C-40 Crusher 5007 | -7/Waste | Spotted C-40 Crusher 5010 | -7/Waste | Spotted C-40 Crusher 5018 | -7/Waste | Spotted C-40 Crusher 5046 | -7/Waste | Crushed by Compactor (1 part destroyed, 1 dropped) 5056 | -7/Waste | Discovered new exit (range 11) 5068 | -7/Waste | Entered Factory 5193 | -7/Factory | Discovered new exit (range 71) 5202 | -7/Factory | Lost 6 allies 5441 | -7/Factory | Identified exit to Factory 5737 | -7/Factory | Build established: Hacker-Skirmisher 6005 | -7/Factory | System corruption reached 10% 6505 | -7/Factory | Build established: Scavenger-Skirmisher 6686 | -7/Factory | Entered another Factory area 6686 | -6/Factory | Evolved 2 slots: Propulsion x1, Utility x1 6961 | -6/Factory | Build established: Hacker-Skirmisher 7321 | -6/Factory | Discovered new exit (range 9) 7715 | -6/Factory | Discovered new exit (range 6) 7881 | -6/Factory | Discovered new exit (range 9) 8260 | -6/Factory | Entered another Factory area 8260 | -5/Factory | Evolved 2 slots: Power x1, Weapon x1 8907 | -5/Factory | Identified exit to Factory 9299 | -5/Factory | Cargo convoy interrupted 9344 | -5/Factory | Core integrity fell below 50% 9363 | -5/Factory | Entered another Factory area 9363 | -4/Factory | Evolved 2 slots: Utility x2 9381 | -4/Factory | Lost 18 parts (2p6n6u4w) 9639 | -4/Factory | Found Quantum Capacitor 10002 | -4/Factory | Discovered new exit (range 5) 10015 | -4/Factory | Entered Upper Caves 10201 | -4/Upper Caves | Build established: Scavenger-Gunner 10323 | -4/Upper Caves | Attacked by a delusional Derelict stockpiling Unaware 10547 | -4/Upper Caves | Attracted the attention of an 0b10 checkpoint 10640 | -4/Upper Caves | Encountered a Warlord checkpoint 10737 | -4/Upper Caves | Discovered new exit (range 15) 10774 | -4/Upper Caves | Entered another Upper Caves area 10774 | -4/Upper Caves | Accompanied by 4 allies 10784 | -4/Upper Caves | P-70 Sage assimilated allied BZ-U20(l) 10790 | -4/Upper Caves | Discovered new exit (range 15) 11139 | -4/Upper Caves | Build established: Hacker-Gunner 11425 | -4/Upper Caves | Discovered new exit (range 5) 11479 | -4/Upper Caves | Entered Zhirov 11479 | -4/Zhirov | Discovered new exit (range 3) 11499 | -4/Zhirov | Met Zhirov 11523 | -4/Zhirov | Learned location of Quarantine (-3) 11523 | -4/Zhirov | Learned location of Testing (-2) 11523 | -4/Zhirov | Learned location of Command (-1) 11558 | -4/Zhirov | Zhirov requested help retrieving the SGEMP Prototype 11603 | -4/Zhirov | Found Alien Artifact 11605 | -4/Zhirov | Identified Integrated Reactor 11605 | -4/Zhirov | Installed Integrated Reactor, increased core energy generation (+10) 11756 | -4/Zhirov | Entered Proximity Caves 11946 | -3/Proximity Caves | Attracted the attention of an 0b10 checkpoint 11981 | -3/Proximity Caves | System corruption reached 10% 12018 | -3/Proximity Caves | Lost 8 parts (3n3u2w) 12256 | -3/Proximity Caves | Build established: Derelict-Tank 12956 | -3/Proximity Caves | Discovered new exit (range 10) 13343 | -3/Proximity Caves | Entered Research 13343 | -3/Research | Evolved 2 slots: Utility x2 13440 | -3/Research | Core integrity fell below 50% 13475 | -3/Research | Lost 18 parts (2p1n5u10w) 13515 | -3/Research | Core integrity fell below 20% 13715 | -3/Research | Found Fusion Bomb Launcher 13728 | -3/Research | Found Prototype Hackware 13729 | -3/Research | Identified Exp. System Shield 13833 | -3/Research | Found Prototype Device 13834 | -3/Research | Identified Exp. Focal Shield 14111 | -3/Research | Destroyed by P-80 Master with Gamma Rifle Last Messages --------------- 14068_ Acquired Prototype Flight Unit. 14069_ Identified Electron Diverter. 14070_ Acquired Faulty Electron Diverter. 14071_ Dropped Faulty Electron Diverter. 14072_ Acquired Imp. Fusion Compressor. 14075_ Dropped Imp. Fusion Compressor. 14076_ Acquired Unknown Device. 14077_ Identified Drone Bay. 14079_ Drone released from Drone Bay. 14086_ Drone destroyed. 14089_ Chain reaction triggered in Lgt. Ion Engine. 14093_ Drone destroyed. 14094_ Drone retrieved by Drone Bay. 14103_ Destroyed Gamma Rifle. 14103_ Destroyed Sml. Battery. 14103_ Terminal disabled. 14105_ Field Propulsion Drive destroyed. 14107_ The unstable cave ceiling collapses. 14109_ P-80 Master destroyed. Map ----- +----------------------------------------------------+ | ?# #????????????# #??# #? # | | ?# #????????????# #??# #? # | | ?# #????????????# #??# + # | | ?# #????????????# #??# # ? | | ?# #????????????# #??# # ?? | | ?# #??##+######## #### # ???? | | # ????? | | # ?????? | | "###????? | | #????? | | ## #####+######+######## #????? | | ?# #???????????????????# ????? | | ?# #????????????????? ## ?? | | ?# #???????????? ??""# p #? | | ?? ???????????? ??" ? | | ?? ?????????????! T ?? | | ?? ?????????????? " ?? | | ?? ??????????????? " ??? | | ?? ???????????????? % ???? | | ?? ????????????????? ##??? | | ?? ?????????????????# #??? | | ????????????????????# #??? | | ????????????????????# #??? | | ?????????????????????# * #???? | | ??????????????????????# != #????? | | ??????????????????????# @ #????? | | ??????????????????????########????? | | ??????????????????????????????????? | | ??????????????????????????????????? | | ??????????????????????????????????? | | ??????????????????????????????????? | | ??????????????????????????????????? | | ??????????????????????????????????? | | ??????????????????????????????????? | | ??????????????????????????????????? | | ??????????????????????????????????? | | ??????????????????????????????????? | | ??????????????????????????????????? | | ??????????????????????????????????? | | ??????????????????????????????????? | | ??????????????????????????????????? | | ??????????????????????????????????? | | ??????????????????????????????????? | | ??????????????????????????????????? | | ??????????????????????????????????? | | ??????????????????????????????????? | | ??????????????????????????????????? | | ??????????????????????????????????? | | ??????????????????????????????????? | | ??????????????????????????????????? | +----------------------------------------------------+ Best States ------------- Heat Dissipation 111 Energy Generation 51 Energy Capacity 500 Matter Stores 385 Matter Capacity 600 Sight Range 16 Terrain Scan Density 10 Power Amplification 40 Armor Coverage 600 Resistance: EM 15 Power Shielding 90 Weapon Cycling 15 Phase Shifting 5 Evasion (%) 63 Target Analysis 9 Recoil Reduction 6 Matter Filtering 30 Kinecelleration 30 Offensive Hacking 34 Defensive Hacking 26 Item Schematics ----------------- Assault Drone Bay | -4/Zhirov | Free Exp. Heat Sink | -4/Zhirov | Free Exp. Optical Array | -4/Zhirov | Free Imp. Arc Thrower | -4/Zhirov | Free Robot Schematics ------------------ None Fabricated ------------ Nothing Alien Tech Used ----------------- Integrated Reactor Achievements -------------- Ooh, Shiny! Challenges ------------ None Game ------ Seed PrecisionWeaponClaw Manual? 0 Play Time 01:48:46 Cumulative 76.0 hours Start 2024.04.17 @ 02:09:25 End 2024.04.17 @ 04:05:56 Sessions 1 Manual Loads 0 Difficulty Rogue Special Mode None Game No. 68 Rogue 68 Adventurer 0 Explorer 0 Win Type - Total 0 Types 0/0/0/0/0/0/0/0/0 Lore% 40 Gallery% 52 Achievement% 32 Wizard Run 0 Options --------- Layout 1 ASCII 0 Keyboard 0 Movement Numpad Keybinds 0 Fullscreen 1 Font 24/Smallcaps Map View 50x35 Zoom Use 0% Tactical HUD 1 Map Filters NONE Filters NONE Steam 1 RUN: d39efa07-6314-4189-ab7f-496593080642